[Event "*** Titled Tuesday Blitz"]
[Site "Chess.com"]
[Date "2020.11.03"]
[Round "5"]
[White "grunbergmihai"]
[Black "tylityli"]
[Result "1-0"]
[WhiteElo "2478"]
[BlackElo "2277"]
[TimeControl "180+1"]
[EndTime "10:56:23 PST"]
[Termination "grunbergmihai won by resignation"]

1. Nf3 {[%clk 0:03:00.9]} 1... Nf6 {[%clk 0:01:59.4]} 2. c4 {[%clk 0:03:01.8]}
2... c5 {[%clk 0:01:58.5]} 3. d4 {[%clk 0:03:01.4]} 3... cxd4 {[%clk 0:01:57.6]}
4. Nxd4 {[%clk 0:03:02.3]} 4... e5 {[%clk 0:01:56.8]} 5. Nb5 {[%clk 0:03:01.4]}
5... d5 {[%clk 0:01:56.1]} 6. cxd5 {[%clk 0:02:58.7]} 6... Qa5+ {[%clk
0:01:54.1]} 7. N5c3 {[%clk 0:02:56]} 7... Bc5 {[%clk 0:01:51.3]} 8. e3 {[%clk
0:02:54.2]} 8... O-O {[%clk 0:01:50.7]} 9. Be2 {[%clk 0:02:52.2]} 9... Rd8
{[%clk 0:01:48]} 10. O-O {[%clk 0:02:51.1]} 10... a6 {[%clk 0:01:41.5]} 11. e4
{[%clk 0:02:30.2]} 11... h6 {[%clk 0:01:40.3]} 12. Nd2 {[%clk 0:02:28.4]} 12...
Ba7 {[%clk 0:01:35.3]} 13. Nc4 {[%clk 0:02:26.1]} 13... Qc5 {[%clk 0:01:33.5]}
14. Be3 {[%clk 0:02:24]} 14... Qe7 {[%clk 0:01:31.3]} 15. Bxa7 {[%clk
0:02:20.5]} 15... Rxa7 {[%clk 0:01:31]} 16. a4 {[%clk 0:02:14.9]} 16... Nbd7
{[%clk 0:01:29.8]} 17. Qc2 {[%clk 0:02:06.9]} 17... Qb4 {[%clk 0:01:28.9]} 18.
a5 {[%clk 0:01:58]} 18... b5 {[%clk 0:01:25.2]} 19. Ne3 {[%clk 0:01:44.7]} 19...
Rc7 {[%clk 0:01:20.7]} 20. Rfd1 {[%clk 0:01:38.7]} 20... Nc5 {[%clk 0:01:16.6]}
21. d6 {[%clk 0:01:28.2]} 21... Rc6 {[%clk 0:01:14.5]} 22. Ncd5 {[%clk
0:01:24.7]} 22... Nxd5 {[%clk 0:01:09.4]} 23. Nxd5 {[%clk 0:01:24]} 23... Qxe4
{[%clk 0:00:59]} 24. Qxe4 {[%clk 0:01:23.2]} 24... Nxe4 {[%clk 0:00:58.5]} 25.
Ne7+ {[%clk 0:01:23]} 1-0

[Event "*** Titled Tuesday Blitz"]
[Site "Chess.com"]
[Date "2020.11.03"]
[Round "5"]
[White "UB_TheQueen"]
[Black "HrvojeZagreb"]
[Result "0-1"]
[WhiteElo "2068"]
[BlackElo "2230"]
[TimeControl "180+1"]
[EndTime "10:56:33 PST"]
[Termination "HrvojeZagreb won by checkmate"]

1. e4 {[%clk 0:03:00.9]} 1... c5 {[%clk 0:02:59.1]} 2. Nf3 {[%clk 0:03:00.4]}
2... Nc6 {[%clk 0:02:59.3]} 3. d4 {[%clk 0:03:00.9]} 3... cxd4 {[%clk
0:03:00.2]} 4. Nxd4 {[%clk 0:03:01.5]} 4... g6 {[%clk 0:03:00.8]} 5. Nc3 {[%clk
0:03:01]} 5... Bg7 {[%clk 0:03:00.9]} 6. Be3 {[%clk 0:03:01]} 6... Nf6 {[%clk
0:03:01.1]} 7. Bc4 {[%clk 0:03:00.6]} 7... O-O {[%clk 0:02:38.1]} 8. Bb3 {[%clk
0:03:00.1]} 8... a5 {[%clk 0:02:34.7]} 9. O-O {[%clk 0:02:49.7]} 9... a4 {[%clk
0:02:28.9]} 10. Nxa4 {[%clk 0:02:49.4]} 10... Nxe4 {[%clk 0:02:27.1]} 11. Nb5
{[%clk 0:02:48.7]} 11... d6 {[%clk 0:02:15.6]} 12. Nb6 {[%clk 0:02:44]} 12...
Ra5 {[%clk 0:02:07]} 13. a4 {[%clk 0:02:39.3]} 13... Be6 {[%clk 0:01:48.3]} 14.
Bxe6 {[%clk 0:02:16.7]} 14... fxe6 {[%clk 0:01:49.2]} 15. Qg4 {[%clk 0:02:15.8]}
15... Nc5 {[%clk 0:01:26.2]} 16. Bxc5 {[%clk 0:02:13.1]} 16... dxc5 {[%clk
0:01:27.1]} 17. Qxe6+ {[%clk 0:02:13.2]} 17... Kh8 {[%clk 0:01:27.4]} 18. c3
{[%clk 0:02:12.9]} 18... Qxb6 {[%clk 0:01:23.8]} 19. Rad1 {[%clk 0:02:07.7]}
19... Rxa4 {[%clk 0:01:18.4]} 20. Na3 {[%clk 0:02:02.8]} 20... Qxb2 {[%clk
0:00:58.4]} 21. Nc4 {[%clk 0:02:02.7]} 21... Qa2 {[%clk 0:00:57.8]} 22. h4
{[%clk 0:01:31.5]} 22... Qxc4 {[%clk 0:00:51.6]} 23. Qd7 {[%clk 0:01:31.7]}
23... Qxh4 {[%clk 0:00:49.7]} 24. Qxb7 {[%clk 0:01:31.5]} 24... Ne5 {[%clk
0:00:45.4]} 25. Rfe1 {[%clk 0:01:30.1]} 25... Qxf2+ {[%clk 0:00:41.1]} 26. Kh2
{[%clk 0:01:29.4]} 26... Rh4# {[%clk 0:00:41.6]} 0-1

[Event "*** Titled Tuesday Blitz"]
[Site "Chess.com"]
[Date "2020.11.03"]
[Round "5"]
[White "GOGIEFF"]
[Black "Legendinunknown"]
[Result "0-1"]
[WhiteElo "2885"]
[BlackElo "2677"]
[TimeControl "180+1"]
[EndTime "10:56:39 PST"]
[Termination "Legendinunknown won by resignation"]

1. d4 {[%clk 0:03:00.9]} 1... Nf6 {[%clk 0:02:56.8]} 2. c4 {[%clk 0:03:01.4]}
2... g6 {[%clk 0:02:55.6]} 3. Nc3 {[%clk 0:03:01.3]} 3... Bg7 {[%clk 0:02:55.9]}
4. e4 {[%clk 0:03:00.9]} 4... d6 {[%clk 0:02:55.7]} 5. Be2 {[%clk 0:03:01.3]}
5... O-O {[%clk 0:02:52.7]} 6. Bg5 {[%clk 0:03:00.9]} 6... c6 {[%clk 0:02:50.3]}
7. Qd2 {[%clk 0:02:55.1]} 7... a6 {[%clk 0:02:46.2]} 8. Nf3 {[%clk 0:02:42]}
8... b5 {[%clk 0:02:41.3]} 9. a3 {[%clk 0:02:35.5]} 9... bxc4 {[%clk 0:02:38.8]}
10. Bxc4 {[%clk 0:02:36.1]} 10... Bb7 {[%clk 0:02:25.7]} 11. Bd3 {[%clk
0:02:26.6]} 11... Nbd7 {[%clk 0:02:21]} 12. O-O {[%clk 0:02:25.7]} 12... c5
{[%clk 0:02:19.9]} 13. d5 {[%clk 0:02:22.5]} 13... Ng4 {[%clk 0:02:19.4]} 14.
Be2 {[%clk 0:02:15.1]} 14... Nge5 {[%clk 0:02:14.4]} 15. Nxe5 {[%clk 0:02:13]}
15... Bxe5 {[%clk 0:02:15.3]} 16. Bh6 {[%clk 0:02:08.6]} 16... Re8 {[%clk
0:02:06.3]} 17. f4 {[%clk 0:02:06.6]} 17... Bd4+ {[%clk 0:02:05]} 18. Kh1 {[%clk
0:02:06.2]} 18... Nf6 {[%clk 0:02:04.3]} 19. Bf3 {[%clk 0:01:57.6]} 19... e6
{[%clk 0:02:02.1]} 20. dxe6 {[%clk 0:01:53.5]} 20... Rxe6 {[%clk 0:01:59.6]} 21.
Rae1 {[%clk 0:01:50.5]} 21... Qe8 {[%clk 0:01:51.8]} 22. f5 {[%clk 0:01:29]}
22... Re5 {[%clk 0:01:44.7]} 23. Qg5 {[%clk 0:01:07.6]} 23... Nxe4 {[%clk
0:01:30.5]} 24. Bxe4 {[%clk 0:00:46.9]} 24... Bxe4 {[%clk 0:01:31.4]} 25. Qf6
{[%clk 0:00:47]} 25... Bxg2+ {[%clk 0:01:15.3]} 0-1

[Event "*** Titled Tuesday Blitz"]
[Site "Chess.com"]
[Date "2020.11.03"]
[Round "5"]
[White "Korchmar_Vasiliy"]
[Black "GigaQuparadze"]
[Result "0-1"]
[WhiteElo "2620"]
[BlackElo "2864"]
[TimeControl "180+1"]
[EndTime "10:56:46 PST"]
[Termination "GigaQuparadze won by resignation"]

1. d4 {[%clk 0:03:00.9]} 1... Nf6 {[%clk 0:02:59.7]} 2. c4 {[%clk 0:02:57.6]}
2... e6 {[%clk 0:02:59.9]} 3. g3 {[%clk 0:02:56.9]} 3... d5 {[%clk 0:02:59.4]}
4. Bg2 {[%clk 0:02:56.7]} 4... Bb4+ {[%clk 0:02:59.5]} 5. Nd2 {[%clk 0:02:56.2]}
5... O-O {[%clk 0:02:58.3]} 6. Nf3 {[%clk 0:02:53.6]} 6... dxc4 {[%clk 0:02:58]}
7. Qc2 {[%clk 0:02:52.2]} 7... c5 {[%clk 0:02:49.3]} 8. dxc5 {[%clk 0:02:39.8]}
8... c3 {[%clk 0:02:47.9]} 9. bxc3 {[%clk 0:02:38.5]} 9... Bxc5 {[%clk
0:02:47.7]} 10. O-O {[%clk 0:02:37.5]} 10... Be7 {[%clk 0:02:47.6]} 11. Ne5
{[%clk 0:02:26.2]} 11... Nbd7 {[%clk 0:02:48.5]} 12. Ndc4 {[%clk 0:02:19.3]}
12... Nxe5 {[%clk 0:02:46.9]} 13. Nxe5 {[%clk 0:02:20.2]} 13... Qc7 {[%clk
0:02:47.4]} 14. Nd3 {[%clk 0:02:02.5]} 14... Bd7 {[%clk 0:02:45.5]} 15. Bf4
{[%clk 0:02:02.7]} 15... Qc8 {[%clk 0:02:42.2]} 16. Ne5 {[%clk 0:02:01.7]} 16...
Bb5 {[%clk 0:02:35.3]} 17. Rab1 {[%clk 0:01:58.3]} 17... Ba6 {[%clk 0:02:35.4]}
18. Rfd1 {[%clk 0:01:53]} 18... Nd5 {[%clk 0:02:26.9]} 19. Rxd5 {[%clk
0:01:29.2]} 19... exd5 {[%clk 0:02:27.8]} 20. Bxd5 {[%clk 0:01:29.9]} 20... Bf6
{[%clk 0:02:20.5]} 21. c4 {[%clk 0:01:05.5]} 21... Bxe5 {[%clk 0:02:15.8]} 22.
Bxe5 {[%clk 0:01:05.6]} 22... Qg4 {[%clk 0:02:14.6]} 23. Rb3 {[%clk 0:00:29.5]}
23... Rac8 {[%clk 0:02:12.9]} 24. Rc3 {[%clk 0:00:29.4]} 24... b6 {[%clk
0:02:09.2]} 25. Kg2 {[%clk 0:00:27.5]} 25... Rfe8 {[%clk 0:02:07.1]} 26. f4
{[%clk 0:00:10.9]} 26... Qd7 {[%clk 0:02:05.8]} 27. Qe4 {[%clk 0:00:07.5]} 27...
Kh8 {[%clk 0:02:05.4]} 28. Qd4 {[%clk 0:00:06.9]} 28... f6 {[%clk 0:02:04.2]}
29. Bxf6 {[%clk 0:00:03.5]} 29... gxf6 {[%clk 0:02:05.1]} 30. Qxf6+ {[%clk
0:00:04.2]} 30... Qg7 {[%clk 0:02:05.1]} 0-1

[Event "*** Titled Tuesday Blitz"]
[Site "Chess.com"]
[Date "2020.11.03"]
[Round "5"]
[White "hungrycaterpillar4"]
[Black "anpospan"]
[Result "1-0"]
[WhiteElo "2570"]
[BlackElo "2393"]
[TimeControl "180+1"]
[EndTime "10:56:46 PST"]
[Termination "hungrycaterpillar4 won by resignation"]

1. e4 {[%clk 0:02:46.6]} 1... Nc6 {[%clk 0:02:44.8]} 2. Nf3 {[%clk 0:02:46.3]}
2... d6 {[%clk 0:02:44.2]} 3. d4 {[%clk 0:02:45.8]} 3... Nf6 {[%clk 0:02:44.3]}
4. Nc3 {[%clk 0:02:45.5]} 4... Bg4 {[%clk 0:02:43.3]} 5. d5 {[%clk 0:02:42.1]}
5... Nb8 {[%clk 0:02:42.7]} 6. Be2 {[%clk 0:02:41.1]} 6... g6 {[%clk 0:02:41.9]}
7. O-O {[%clk 0:02:39.5]} 7... Bg7 {[%clk 0:02:41.7]} 8. Be3 {[%clk 0:02:39.9]}
8... O-O {[%clk 0:02:40.6]} 9. a4 {[%clk 0:02:40.2]} 9... c5 {[%clk 0:02:39.3]}
10. Nd2 {[%clk 0:02:38.1]} 10... Bxe2 {[%clk 0:02:38.2]} 11. Qxe2 {[%clk
0:02:39]} 11... Nbd7 {[%clk 0:02:35.4]} 12. f4 {[%clk 0:02:38.1]} 12... a6
{[%clk 0:02:27.9]} 13. a5 {[%clk 0:02:37.4]} 13... Ne8 {[%clk 0:02:01.4]} 14.
Nc4 {[%clk 0:02:33.6]} 14... Nc7 {[%clk 0:01:45.7]} 15. Na4 {[%clk 0:02:33.4]}
15... Nb5 {[%clk 0:01:42.5]} 16. c3 {[%clk 0:02:32.8]} 16... Qc7 {[%clk
0:01:36.1]} 17. Nab6 {[%clk 0:02:32.8]} 17... Nxb6 {[%clk 0:01:33.2]} 18. axb6
{[%clk 0:02:33.2]} 18... Qd7 {[%clk 0:01:29.6]} 19. f5 {[%clk 0:02:24.9]} 19...
Kh8 {[%clk 0:01:10.2]} 20. Rf3 {[%clk 0:02:24.2]} 20... f6 {[%clk 0:00:59.7]}
21. Raf1 {[%clk 0:02:20.4]} 21... Kg8 {[%clk 0:00:54.4]} 22. h4 {[%clk
0:02:18.1]} 22... Kf7 {[%clk 0:00:51.5]} 23. Rg3 {[%clk 0:01:59.4]} 23... Rg8
{[%clk 0:00:48.6]} 24. fxg6+ {[%clk 0:01:51.1]} 24... hxg6 {[%clk 0:00:47.6]}
25. h5 {[%clk 0:01:51.7]} 25... Bh8 {[%clk 0:00:22.7]} 26. e5 {[%clk 0:01:51.2]}
26... Ke8 {[%clk 0:00:11.1]} 27. e6 {[%clk 0:01:49.1]} 1-0

[Event "*** Titled Tuesday Blitz"]
[Site "Chess.com"]
[Date "2020.11.03"]
[Round "5"]
[White "ArjunErigaisi2003"]
[Black "RD4ever"]
[Result "1-0"]
[WhiteElo "2998"]
[BlackElo "2855"]
[TimeControl "180+1"]
[EndTime "10:56:55 PST"]
[Termination "ArjunErigaisi2003 won by resignation"]

1. d4 {[%clk 0:01:38.1]} 1... d5 {[%clk 0:02:57.1]} 2. c4 {[%clk 0:01:37.7]}
2... e6 {[%clk 0:02:57.6]} 3. Nf3 {[%clk 0:01:37.8]} 3... Nf6 {[%clk 0:02:57.4]}
4. g3 {[%clk 0:01:38.3]} 4... dxc4 {[%clk 0:02:26.6]} 5. Bg2 {[%clk 0:01:39.2]}
5... Bd7 {[%clk 0:02:26.9]} 6. Ne5 {[%clk 0:01:38.5]} 6... Bc6 {[%clk
0:02:27.2]} 7. Nxc6 {[%clk 0:01:38.7]} 7... Nxc6 {[%clk 0:02:28.1]} 8. O-O
{[%clk 0:01:39]} 8... Qd7 {[%clk 0:02:28.7]} 9. e3 {[%clk 0:01:35.6]} 9... Rd8
{[%clk 0:02:27.7]} 10. Qe2 {[%clk 0:01:23.6]} 10... e5 {[%clk 0:02:21.9]} 11.
dxe5 {[%clk 0:01:04.4]} 11... Nxe5 {[%clk 0:02:18.3]} 12. Bxb7 {[%clk 0:01:05]}
12... c6 {[%clk 0:02:04]} 13. Ba6 {[%clk 0:01:05.2]} 13... h5 {[%clk 0:01:32.7]}
14. Nd2 {[%clk 0:00:47.5]} 14... h4 {[%clk 0:01:19.6]} 15. Nxc4 {[%clk
0:00:47.8]} 15... h3 {[%clk 0:01:04.6]} 16. Nxe5 {[%clk 0:00:45.2]} 16... Qd5
{[%clk 0:01:03.4]} 17. Nf3 {[%clk 0:00:45]} 17... Ne4 {[%clk 0:01:02.6]} 18. Bc4
{[%clk 0:00:43.3]} 18... Qh5 {[%clk 0:01:02.5]} 19. Nd4 {[%clk 0:00:41.9]} 19...
Qe5 {[%clk 0:00:56.3]} 20. Nxc6 {[%clk 0:00:39.6]} 1-0

[Event "*** Titled Tuesday Blitz"]
[Site "Chess.com"]
[Date "2020.11.03"]
[Round "5"]
[White "Chessdreamer2020"]
[Black "Flawless_Fighter"]
[Result "1-0"]
[WhiteElo "2507"]
[BlackElo "2653"]
[TimeControl "180+1"]
[EndTime "10:57:00 PST"]
[Termination "Chessdreamer2020 won by resignation"]

1. e4 {[%clk 0:02:58.9]} 1... c6 {[%clk 0:03:00.1]} 2. Nc3 {[%clk 0:02:56.3]}
2... d5 {[%clk 0:03:01]} 3. Nf3 {[%clk 0:02:56.8]} 3... Bg4 {[%clk 0:03:01.1]}
4. h3 {[%clk 0:02:57.3]} 4... Bxf3 {[%clk 0:03:01.5]} 5. Qxf3 {[%clk 0:02:57.7]}
5... e6 {[%clk 0:03:01.5]} 6. d3 {[%clk 0:02:58.1]} 6... Nf6 {[%clk 0:03:01]} 7.
g3 {[%clk 0:02:58.4]} 7... Be7 {[%clk 0:03:00.6]} 8. Bg2 {[%clk 0:02:58.8]} 8...
O-O {[%clk 0:03:01.2]} 9. O-O {[%clk 0:02:59.3]} 9... d4 {[%clk 0:03:00.8]} 10.
Nb1 {[%clk 0:02:57.7]} 10... c5 {[%clk 0:03:00.9]} 11. Nd2 {[%clk 0:02:57.2]}
11... Nc6 {[%clk 0:03:01.3]} 12. Qe2 {[%clk 0:02:55.8]} 12... e5 {[%clk
0:02:59.3]} 13. f4 {[%clk 0:02:55.4]} 13... Ne8 {[%clk 0:02:56.9]} 14. Nc4
{[%clk 0:02:49.7]} 14... Qc7 {[%clk 0:02:51]} 15. a4 {[%clk 0:02:43.9]} 15... f6
{[%clk 0:02:45.9]} 16. h4 {[%clk 0:02:42.6]} 16... Nd6 {[%clk 0:02:45.2]} 17.
Bh3 {[%clk 0:02:36.4]} 17... Nxc4 {[%clk 0:02:43.8]} 18. Be6+ {[%clk 0:02:36.1]}
18... Kh8 {[%clk 0:02:43.3]} 19. Bxc4 {[%clk 0:02:37]} 19... f5 {[%clk
0:02:37.2]} 20. exf5 {[%clk 0:02:31]} 20... Rxf5 {[%clk 0:02:33]} 21. Be6 {[%clk
0:02:25]} 21... Rf6 {[%clk 0:02:30.6]} 22. f5 {[%clk 0:02:25.2]} 22... e4 {[%clk
0:02:02.6]} 23. Bf4 {[%clk 0:02:15.9]} 23... exd3 {[%clk 0:02:01.5]} 24. cxd3
{[%clk 0:02:11.3]} 24... Bd6 {[%clk 0:02:00.4]} 25. Bg5 {[%clk 0:02:05.1]} 25...
Rff8 {[%clk 0:01:48.8]} 26. f6 {[%clk 0:02:05]} 26... Rae8 {[%clk 0:01:33.2]}
27. fxg7+ {[%clk 0:01:55.5]} 27... Qxg7 {[%clk 0:01:31.2]} 28. Rxf8+ {[%clk
0:01:55]} 28... Rxf8 {[%clk 0:01:25.1]} 29. Rf1 {[%clk 0:01:33.3]} 29... Bxg3
{[%clk 0:00:48.1]} 30. Rxf8+ {[%clk 0:01:28.4]} 30... Qxf8 {[%clk 0:00:49]} 31.
Kg2 {[%clk 0:01:26.3]} 31... Bd6 {[%clk 0:00:47.5]} 32. Qg4 {[%clk 0:01:22]}
32... Ne5 {[%clk 0:00:44.8]} 33. Bf6+ {[%clk 0:01:20.4]} 1-0

[Event "*** Titled Tuesday Blitz"]
[Site "Chess.com"]
[Date "2020.11.03"]
[Round "5"]
[White "DenisQ"]
[Black "Shield12"]
[Result "0-1"]
[WhiteElo "2663"]
[BlackElo "2912"]
[TimeControl "180+1"]
[EndTime "10:57:07 PST"]
[Termination "Shield12 won by resignation"]

1. Nf3 {[%clk 0:03:00.9]} 1... c5 {[%clk 0:03:00.1]} 2. g3 {[%clk 0:02:59.7]}
2... g6 {[%clk 0:03:00.6]} 3. Bg2 {[%clk 0:02:59.3]} 3... Bg7 {[%clk 0:03:01.4]}
4. c4 {[%clk 0:02:58.7]} 4... Nc6 {[%clk 0:03:02.1]} 5. O-O {[%clk 0:02:59.1]}
5... Nf6 {[%clk 0:03:02.6]} 6. Nc3 {[%clk 0:02:59.6]} 6... d5 {[%clk 0:03:03]}
7. d4 {[%clk 0:02:49.2]} 7... O-O {[%clk 0:03:02.7]} 8. cxd5 {[%clk 0:02:43.1]}
8... Nxd5 {[%clk 0:03:02]} 9. Nxd5 {[%clk 0:02:42.3]} 9... Qxd5 {[%clk
0:03:02.9]} 10. Be3 {[%clk 0:02:31.6]} 10... cxd4 {[%clk 0:02:57.2]} 11. Nxd4
{[%clk 0:02:30.7]} 11... Qc4 {[%clk 0:02:55.5]} 12. Nxc6 {[%clk 0:02:23.1]}
12... bxc6 {[%clk 0:02:55.4]} 13. b3 {[%clk 0:01:32.1]} 13... Qa6 {[%clk
0:02:53.5]} 14. Rc1 {[%clk 0:01:31.2]} 14... Qxa2 {[%clk 0:02:49]} 15. Rxc6
{[%clk 0:01:13.1]} 15... Bf5 {[%clk 0:02:37.4]} 16. Rc7 {[%clk 0:00:33.8]} 16...
Rad8 {[%clk 0:02:35.8]} 17. Qe1 {[%clk 0:00:33]} 17... a5 {[%clk 0:02:28.2]} 18.
Ra7 {[%clk 0:00:32.3]} 18... Qxb3 {[%clk 0:02:23.9]} 19. Qxa5 {[%clk 0:00:31.8]}
19... Bf6 {[%clk 0:02:20.1]} 20. Qb6 {[%clk 0:00:27.1]} 20... Qc2 {[%clk
0:02:16.4]} 21. Bf3 {[%clk 0:00:25.8]} 21... Bh3 {[%clk 0:02:13.8]} 22. Qb1
{[%clk 0:00:22.6]} 22... Qc4 {[%clk 0:01:46.9]} 23. Rc1 {[%clk 0:00:19.8]} 23...
Qe6 {[%clk 0:01:47]} 24. Bh6 {[%clk 0:00:18.7]} 24... Rfe8 {[%clk 0:01:44.8]}
25. Qe4 {[%clk 0:00:15.1]} 25... Qb6 {[%clk 0:01:37.7]} 26. Rb7 {[%clk
0:00:14.5]} 26... Qd6 {[%clk 0:01:33.2]} 27. Rbb1 {[%clk 0:00:12.3]} 27... Bf5
{[%clk 0:01:30.6]} 0-1

[Event "*** Titled Tuesday Blitz"]
[Site "Chess.com"]
[Date "2020.11.03"]
[Round "5"]
[White "ssrija97"]
[Black "djano"]
[Result "1-0"]
[WhiteElo "2272"]
[BlackElo "2456"]
[TimeControl "180+1"]
[EndTime "10:57:07 PST"]
[Termination "ssrija97 won by resignation"]

1. e4 {[%clk 0:03:00.9]} 1... g6 {[%clk 0:02:59.9]} 2. d4 {[%clk 0:03:00.1]}
2... Bg7 {[%clk 0:03:00]} 3. Nc3 {[%clk 0:02:57]} 3... a6 {[%clk 0:02:59.7]} 4.
f4 {[%clk 0:02:54.8]} 4... b5 {[%clk 0:02:57.9]} 5. Nf3 {[%clk 0:02:51.4]} 5...
Bb7 {[%clk 0:02:58.1]} 6. Bd3 {[%clk 0:02:51.4]} 6... d6 {[%clk 0:02:58]} 7. O-O
{[%clk 0:02:50]} 7... Nd7 {[%clk 0:02:57.9]} 8. e5 {[%clk 0:02:44.8]} 8... e6
{[%clk 0:02:55.3]} 9. Ne4 {[%clk 0:02:40]} 9... Qe7 {[%clk 0:02:48.5]} 10. c3
{[%clk 0:02:35.6]} 10... Nh6 {[%clk 0:02:47.5]} 11. a4 {[%clk 0:02:34.7]} 11...
Bxe4 {[%clk 0:02:39.9]} 12. Bxe4 {[%clk 0:02:34.2]} 12... d5 {[%clk 0:02:40.4]}
13. Bd3 {[%clk 0:02:32.9]} 13... Rb8 {[%clk 0:02:39.6]} 14. axb5 {[%clk
0:02:32]} 14... axb5 {[%clk 0:02:40.5]} 15. Ra7 {[%clk 0:02:27.8]} 15... c6
{[%clk 0:02:31.5]} 16. b3 {[%clk 0:02:23]} 16... Qd8 {[%clk 0:02:24.4]} 17. Rf2
{[%clk 0:02:04.7]} 17... O-O {[%clk 0:02:15.1]} 18. Ba3 {[%clk 0:02:02.1]} 18...
Re8 {[%clk 0:02:15.4]} 19. Bd6 {[%clk 0:02:01.2]} 19... Rc8 {[%clk 0:02:04.3]}
20. Rfa2 {[%clk 0:01:59.4]} 20... Nf5 {[%clk 0:01:53.9]} 21. Rb7 {[%clk
0:01:39.6]} 21... Nxd6 {[%clk 0:00:44.2]} 22. exd6 {[%clk 0:01:40.5]} 22... Bf8
{[%clk 0:00:43.9]} 23. Raa7 {[%clk 0:01:37.4]} 23... Nf6 {[%clk 0:00:36]} 24.
Ne5 {[%clk 0:01:30.9]} 24... Ne4 {[%clk 0:00:22.6]} 25. d7 {[%clk 0:01:28.6]}
1-0

[Event "*** Titled Tuesday Blitz"]
[Site "Chess.com"]
[Date "2020.11.03"]
[Round "5"]
[White "vanea_03"]
[Black "mjray79"]
[Result "1-0"]
[WhiteElo "2731"]
[BlackElo "2489"]
[TimeControl "180+1"]
[EndTime "10:57:10 PST"]
[Termination "vanea_03 won by resignation"]

1. c4 {[%clk 0:03:00.3]} 1... Nf6 {[%clk 0:02:59.4]} 2. Nc3 {[%clk 0:02:59.6]}
2... g6 {[%clk 0:02:59.2]} 3. d4 {[%clk 0:02:55.9]} 3... Bg7 {[%clk 0:02:59]} 4.
g3 {[%clk 0:02:56.2]} 4... O-O {[%clk 0:02:58.1]} 5. Bg2 {[%clk 0:02:56.7]} 5...
d6 {[%clk 0:02:58.3]} 6. Nf3 {[%clk 0:02:56.7]} 6... Nc6 {[%clk 0:02:57.9]} 7.
O-O {[%clk 0:02:56.1]} 7... a6 {[%clk 0:02:58.1]} 8. d5 {[%clk 0:02:53.5]} 8...
Na5 {[%clk 0:02:57.2]} 9. Qd3 {[%clk 0:02:54.1]} 9... c5 {[%clk 0:02:56.4]} 10.
b3 {[%clk 0:02:48.4]} 10... Rb8 {[%clk 0:02:51.5]} 11. Bd2 {[%clk 0:02:43.4]}
11... b5 {[%clk 0:02:45]} 12. e4 {[%clk 0:02:27.9]} 12... Bd7 {[%clk 0:02:31.9]}
13. h3 {[%clk 0:02:24.3]} 13... Ne8 {[%clk 0:02:26.9]} 14. Rae1 {[%clk
0:02:14.9]} 14... f5 {[%clk 0:02:10]} 15. e5 {[%clk 0:02:07.5]} 15... dxe5
{[%clk 0:02:10]} 16. Nxe5 {[%clk 0:02:08.4]} 16... Nd6 {[%clk 0:02:10.1]} 17.
Nxd7 {[%clk 0:02:01.3]} 17... Qxd7 {[%clk 0:02:09.8]} 18. cxb5 {[%clk
0:01:58.6]} 18... axb5 {[%clk 0:02:08.4]} 19. Re6 {[%clk 0:01:54.7]} 19... c4
{[%clk 0:02:03.8]} 20. bxc4 {[%clk 0:01:52.9]} 20... Naxc4 {[%clk 0:02:02]} 21.
Bg5 {[%clk 0:01:45.7]} 21... Rf7 {[%clk 0:01:57]} 22. Rfe1 {[%clk 0:01:41.4]}
22... Re8 {[%clk 0:01:53.9]} 23. Nd1 {[%clk 0:01:30.2]} 23... h6 {[%clk
0:01:52.5]} 24. Bf4 {[%clk 0:01:24.4]} 24... g5 {[%clk 0:01:46.6]} 25. Bc1
{[%clk 0:01:19.5]} 25... Qa7 {[%clk 0:01:36.4]} 26. a3 {[%clk 0:01:10.9]} 26...
f4 {[%clk 0:01:19.6]} 27. gxf4 {[%clk 0:00:57.2]} 27... gxf4 {[%clk 0:01:20.5]}
28. Bf3 {[%clk 0:00:55.3]} 28... Rf5 {[%clk 0:01:05.9]} 29. Bg4 {[%clk
0:00:51.6]} 29... Rg5 {[%clk 0:01:02.9]} 30. Bxf4 {[%clk 0:00:49.5]} 30... Rf8
{[%clk 0:01:02.3]} 31. Bxg5 {[%clk 0:00:47.6]} 31... Qxf2+ {[%clk 0:01:02]} 32.
Nxf2 {[%clk 0:00:47.6]} 1-0

[Event "*** Titled Tuesday Blitz"]
[Site "Chess.com"]
[Date "2020.11.03"]
[Round "5"]
[White "grzechu96"]
[Black "Firouzja2003"]
[Result "0-1"]
[WhiteElo "2682"]
[BlackElo "3057"]
[TimeControl "180+1"]
[EndTime "10:57:11 PST"]
[Termination "Firouzja2003 won by resignation"]

1. e4 {[%clk 0:03:00.9]} 1... b6 {[%clk 0:02:58.6]} 2. d4 {[%clk 0:03:00.3]}
2... Bb7 {[%clk 0:02:56.5]} 3. Bd3 {[%clk 0:03:00.9]} 3... e6 {[%clk 0:02:55.3]}
4. Nf3 {[%clk 0:03:00.8]} 4... d5 {[%clk 0:02:49.4]} 5. e5 {[%clk 0:02:59.1]}
5... Ba6 {[%clk 0:02:49]} 6. O-O {[%clk 0:02:55]} 6... Bxd3 {[%clk 0:02:42.9]}
7. Qxd3 {[%clk 0:02:55.9]} 7... Ne7 {[%clk 0:02:43.4]} 8. a4 {[%clk 0:02:45.9]}
8... a6 {[%clk 0:02:40.2]} 9. b3 {[%clk 0:02:44.2]} 9... Nbc6 {[%clk 0:02:32.2]}
10. Ba3 {[%clk 0:02:41.9]} 10... Nf5 {[%clk 0:02:27.5]} 11. Bxf8 {[%clk
0:02:41.2]} 11... Kxf8 {[%clk 0:02:26.6]} 12. c3 {[%clk 0:02:34]} 12... h5
{[%clk 0:02:23.9]} 13. Nbd2 {[%clk 0:02:32.8]} 13... g5 {[%clk 0:02:23.1]} 14.
Ne1 {[%clk 0:02:23.3]} 14... g4 {[%clk 0:02:21]} 15. Nc2 {[%clk 0:02:19.7]}
15... Qg5 {[%clk 0:02:11.2]} 16. Ne3 {[%clk 0:02:12.5]} 16... Nce7 {[%clk
0:02:09]} 17. Rfe1 {[%clk 0:01:45.7]} 17... h4 {[%clk 0:02:01.5]} 18. Ndf1
{[%clk 0:01:46.1]} 18... Rg8 {[%clk 0:01:52.9]} 19. c4 {[%clk 0:01:24.2]} 19...
c6 {[%clk 0:01:38.4]} 20. a5 {[%clk 0:01:14.1]} 20... b5 {[%clk 0:01:37.9]} 21.
cxb5 {[%clk 0:01:14.2]} 21... cxb5 {[%clk 0:01:37.9]} 22. Rac1 {[%clk 0:01:14]}
22... Qf4 {[%clk 0:01:35.1]} 23. Nxf5 {[%clk 0:00:52.7]} 23... Nxf5 {[%clk
0:01:34]} 24. Red1 {[%clk 0:00:49.9]} 24... g3 {[%clk 0:01:34.2]} 25. fxg3
{[%clk 0:00:12.3]} 25... hxg3 {[%clk 0:01:35.1]} 26. h3 {[%clk 0:00:12.6]} 26...
Qf2+ {[%clk 0:01:33.6]} 27. Kh1 {[%clk 0:00:12.8]} 27... Rh8 {[%clk 0:01:34.4]}
28. Qd2 {[%clk 0:00:05.1]} 28... Rxh3+ {[%clk 0:01:33.9]} 0-1